Cogmind - Beta 12 @@@ ROGUE MODE // 2023.10.19 @ 10:16:56 Player: Fleshy Vegetable Bird Result: Destroyed by D-53 Grenadier with Mini Grenade Launcher Performance ------------- Evolutions (1) 500 Regions Visited (4) 800 Robots Destroyed (54) 270 Value Destroyed (854) 854 Prototype IDs (3) 60 Alien Tech Used (0) 0 Bonus (0) 0 TOTAL SCORE: 2484 Bonus ------- None Cogmind --------- Core Integrity 0/400 Matter 161/300 Energy 75/100 System Corruption 8% Temperature Cool (0) Movement Core (50) Location -9/Mines Parts ------- > --- POWER (1) -------- (None) > --- PROPULSION (2) --- (None) > --- UTILITY (4) ------ Salvage Targeting Computer Hacking Suite > --- WEAPON (2) ------- (None) > --- INVENTORY (5) ---- Decoy Drone Bay (16/16) Shotgun Heavy Hammer Blade Trap Peak State ------------ > --- POWER ------------ Light Ion Engine > --- PROPULSION ------- Wheel Wheel > --- UTILITY ---------- Large Storage Unit Improved Terrain Scanner Decoy Drone Bay > --- WEAPON ----------- Shotgun Light Cannon > --- INVENTORY -------- Wheel Large Storage Unit High-capacity Storage Unit Terrain Scan Processor Salvage Targeting Computer Shotgun Shotgun Grenade Launcher Mining Claw Blade Trap Blade Trap Blade Trap Blade Trap [Rating: 25] Favorites ----------- Power Light Ion Engine Engine Light Ion Engine Propulsion Wheel Wheel Wheel Utility Improved Terrain Scanner Device Improved Terrain Scanner Storage Large Storage Unit Processor Salvage Targeting Computer Hackware Hacking Suite Weapon Shotgun Energy Gun EM Pulse Gun Ballistic Gun Shotgun Ballistic Cannon Light Cannon Build | -11 -10 -10 -9 -9 ------- Run | Jun Mat Min Mat Min Slots Evolved 2 | . . . 2 . Power . | . . . . . Propulsion . | . . . . . Utility 2 | . . . 2 . Weapon . | . . . . . Parts Attached 30 | 8 6 . 15 1 Power 4 | 1 1 . 2 . Engine 4 | 1 1 . 2 . Core . | . . . . . Reactor . | . . . . . Propulsion 6 | 2 2 . 2 . Treads . | . . . . . Leg . | . . . . . Wheel 6 | 2 2 . 2 . Hover . | . . . . . Flight . | . . . . . Utility 8 | 3 1 . 3 1 Device 3 | 2 . . 1 . Storage 2 | 1 1 . . . Processor 2 | . . . 2 . Hackware 1 | . . . . 1 Protection . | . . . . . Artifact . | . . . . . Weapon 12 | 2 2 . 8 . Energy Gun 3 | 2 . . 1 . Energy Cannon . | . . . . . Ballistic Gun 7 | . 1 . 6 . Ballistic Cannon 2 | . 1 . 1 . Launcher . | . . . . . Special Weapon . | . . . . . Impact Weapon . | . . . . . Slashing Weapon . | . . . . . Piercing Weapon . | . . . . . Special Melee Weapon . | . . . . . Unidentified Prototypes 3 | . . . 3 . Parts Lost 12 | . . . 9 3 Power 3 | . . . 3 . Propulsion 4 | . . . 4 . Utility 2 | . . . 1 1 Weapon 3 | . . . 1 2 Highest Loss Streak 4 | . . . 4 3 To Critical Strikes . | . . . . . Average Slot Usage (%) 92 | . 100 100 86 55 Engine 11 | . 14 14 7 . Wheel 22 | . 28 28 17 . Device 10 | . 14 14 6 . Storage 12 | . 14 14 11 11 Processor 7 | . . . 21 22 Energy Gun 2 | . 8 . . . Ballistic Gun 11 | . 5 14 16 11 Ballistic Cannon 11 | . 13 14 5 11 Naked Turns . | . . . . . Heaviest Build 32 | 12 30 30 32 27 Greatest Support 20 | 20 20 20 20 3 Greatest Overweight (x) 8 | 1 1 1 8 8 Average Overweight (x) . | . . 1 1 6 Largest Inventory Capacity 15 | 8 15 15 15 15 Average Capacity 12 | 7 8 15 15 14 Most Carried 15 | 6 8 15 15 15 Average Carried 10 | 2 7 9 13 14 Final Capacity 15 | 8 15 15 15 5 Final Carried 15 | 3 7 15 15 5 Class Distribution -------------------- 89% | Mutant 10% | Scavenger-Mutant Dominant Class ---------------- Mutant | -10/Materials Mutant | -10/Mines Mutant | -9/Materials Mutant | -9/Mines Resources | -11 -10 -10 -9 -9 ----------- Run | Jun Mat Min Mat Min Matter Collected 1162 | 257 345 103 452 5 Remotely . | . . . . . Salvage Created 1488 | 140 467 147 734 . Parts 109 | 13 36 24 36 . Haulers Intercepted 4 | . 2 . 2 . Recyclers Shooed 3 | 1 1 . 1 . Parts Field Recycled . | . . . . . Retrieved Matter . | . . . . . Parts Self-Destructed . | . . . . . Prevented . | . . . . . Kills | -11 -10 -10 -9 -9 ------- Run | Jun Mat Min Mat Min Combat Hostiles Destroyed 32 | . 10 9 13 . Guns 25 | . 8 8 9 . Cannons 7 | . 2 1 4 . Classes Destroyed 11 | 2 5 1 3 . Worker 1 | . . . 1 . Builder 1 | . . 1 . . Tunneler 5 | 4 . . 1 . Hauler 4 | . 2 . 2 . Recycler 5 | 1 1 . 3 . Mechanic 1 | . . . 1 . Operator 2 | . 1 . 1 . Watcher 3 | . 3 . . . Swarmer 19 | . 5 9 5 . Grunt 12 | . 5 . 7 . Sentry 1 | . . . 1 . Best Kill Streak 7 | 5 6 4 7 . Combat Bots Only 5 | . 4 3 5 . Max Kills in Single Turn 2 | 1 1 2 2 . Gunslinging . | . . . . . Exploded . | . . . . . Melee . | . . . . . Uniques/NPCs Destroyed . | . . . . . Combat | -11 -10 -10 -9 -9 -------- Run | Jun Mat Min Mat Min Damage Taken 1672 | 6 273 95 846 452 Core 510 | 6 77 22 188 217 Absorbed by Shields . | . . . . . Core Remaining (%) 77 | 97 . 58 . . Volleys Fired 132 | 8 44 11 66 3 Largest 2 | 2 2 2 2 2 Hottest 80 | 80 75 58 62 62 Shots Fired 251 | 16 88 22 120 5 Gun 164 | 16 44 11 91 2 Cannon 87 | . 44 11 29 3 Launcher . | . . . . . Special . | . . . . . Kinetic 220 | . 73 22 120 5 Thermal 8 | 8 . . . . Explosive . | . . . . . Electromagnetic 23 | 8 15 . . . Robot Hit Streak 7 | 5 5 6 7 4 Robot Miss Streak 5 | 1 5 5 3 2 Penetration Max . | . . . . . Secondary Targets 2 | . . . 2 . Max Gunslinging Chain 1 | . . . 1 . Shots Hit Robots 153 | 11 51 10 78 3 Core Hits 76 | 5 25 10 36 . Critical Kills 3 | . . 1 2 . Critical Parts Destroyed 1 | . 1 . . . Critical Strikes 8 | . 5 1 2 . Destroy 4 | . 1 1 2 . Blast 4 | . 4 . . . Melee Attacks . | . . . . . Impact . | . . . . . Slashing . | . . . . . Piercing . | . . . . . Sneak Attacks . | . . . . . Combat Hostiles . | . . . . . Follow-up Attacks . | . . . . . Damage Inflicted 2537 | 179 853 185 1257 63 Guns 1654 | 137 411 137 947 22 Cannons 839 | . 442 48 308 41 Explosions 42 | 42 . . . . Melee . | . . . . . Ramming 2 | . . . 2 . Kinetic 2246 | . 743 185 1255 63 Thermal 89 | 89 . . . . Explosive . | . . . . . Electromagnetic 200 | 90 110 . . . Impact . | . . . . . Slashing . | . . . . . Piercing . | . . . . . Highest Corruption 8 | . . . 5 8 Average Corruption 4 | . . . 4 5 Corruption Purged . | . . . . . Corruption Blocked . | . . . . . Effects 9 | . . . 6 3 Matter Fused 2 | . . . 2 . Heat Flow Errors 3 | . . . 2 1 Energy Discharges 1 | . . . . 1 Parts Rejected 1 | . . . 1 . Weapon Failures 2 | . . . 1 1 Overload Shots . | . . . . . Overflow Damage 18 | 12 6 . . . Projectiles 6 | . 6 . . . Explosions 12 | 12 . . . . Melee . | . . . . . Knockbacks 14 | . 6 2 6 . Impact . | . . . . . Kinetic 11 | . 4 2 5 . Secondary 3 | . 2 . 1 . Self-Inflicted Damage 7 | 6 . . 1 . Shots 1 | 1 . . . . Rammed 2 | . 1 . 1 . Targets Rammed 2 | . 1 . 1 . Kicked . | . . . . . Crushed . | . . . . . Highest Temperature 266 | 90 159 . 266 236 Average Temperature 67 | 38 44 . 112 124 Received Heat Transfer 357 | . 93 . 264 . Siege Activations . | . . . . . Robots Corrupted . | . . . . . Combat Hostiles . | . . . . . Parts Fried . | . . . . . Impact Corruptions . | . . . . . Robots Melted . | . . . . . Combat Hostiles . | . . . . . Parts Melted . | . . . . . Heat Transferred 150 | 150 . . . . Parts Sabotaged . | . . . . . Parts Stolen . | . . . . . Parts Stripped . | . . . . . Power Chain Reactions 1 | 1 . . . . Missiles Intercepted . | . . . . . Alert | -11 -10 -10 -9 -9 ------- Run | Jun Mat Min Mat Min Peak Influence 342 | 25 298 311 342 86 Initial 96 | . 16 96 42 86 Average 176 | 10 151 219 205 85 Maximum Alert Level 1 | . 1 1 1 . Low Security (%) 59 | 100 77 44 37 100 Level 1 40 | . 22 55 62 . Level 2 . | . . . . . Level 3 . | . . . . . Level 4 . | . . . . . Level 5 . | . . . . . High Security . | . . . . . Max Security . | . . . . . Squads Dispatched 2 | . 1 . 1 . Investigation . | . . . . . Extermination . | . . . . . Reinforcement 2 | . 1 . 1 . Assault . | . . . . . Garrison . | . . . . . Intercept . | . . . . . Searches Triggered . | . . . . . Construction Impeded . | . . . . . Haulers Reinforced . | . . . . . Active Scanning Responses . | . . . . . Cargo Convoy Interrupts . | . . . . . Stealth | -11 -10 -10 -9 -9 --------- Run | Jun Mat Min Mat Min Distress Signals 2 | . 1 . 1 . Communications Jammed . | . . . . . Distress Signals . | . . . . . Times Spotted 54 | . 21 7 23 3 Peak Tracking Total 5 | . 4 3 5 4 Tactical Retreats 6 | . 5 . 1 . Traps | -11 -10 -10 -9 -9 ------- Run | Jun Mat Min Mat Min Traps Triggered 5 | . 1 . 4 . Indirectly . | . . . . . Trap Hack Attempts . | . . . . . Triggered . | . . . . . Disarmed . | . . . . . Reprogrammed . | . . . . . Reused . | . . . . . Traps Extracted . | . . . . . Installed . | . . . . . Triggered . | . . . . . Most Traps Carried 4 | . . 4 4 4 Machines | -11 -10 -10 -9 -9 ---------- Run | Jun Mat Min Mat Min Machines Disabled . | . . . . . Max in Single Turn . | . . . . . Machines Repaired . | . . . . . Machines Sabotaged . | . . . . . Overloaded Fab Kills . | . . . . . Hacking | -11 -10 -10 -9 -9 --------- Run | Jun Mat Min Mat Min Machines Accessed 9 | . 5 1 3 . Terminals 8 | . 5 . 3 . Fabricators . | . . . . . Repair Stations . | . . . . . Recycling Units . | . . . . . Scanalyzers . | . . . . . Garrison Access . | . . . . . Total Hacks 28 | . 17 1 10 . Successful 12 | . 7 1 4 . Failed 16 | . 10 . 6 . Catastrophic 1 | . 1 . . . Database Lockouts . | . . . . . Manual 27 | . 17 . 10 . Terminals 27 | . 17 . 10 . Fabricators . | . . . . . Repair Stations . | . . . . . Recycling Units . | . . . . . Scanalyzers . | . . . . . Garrison Access . | . . . . . Terminal Hacks 5 | . 3 1 1 . Part Schematic 2 | . 2 . . . Open Door 1 | . . 1 . . Terminal Index 2 | . 1 . 1 . Fabricator Hacks . | . . . . . Repair Station Hacks . | . . . . . Recycling Unit Hacks . | . . . . . Scanalyzer . | . . . . . Garrison Access Hacks . | . . . . . Unauthorized Hacks 7 | . 4 . 3 . Terminals 7 | . 4 . 3 . Botnet 6 | . 4 . 2 . Operators 1 | . . . 1 . Fabricators . | . . . . . Repair Stations . | . . . . . Recycling Units . | . . . . . Scanalyzers . | . . . . . Garrison Access . | . . . . . Data Cores Recovered . | . . . . . Used . | . . . . . Hacking Detections 8 | . 5 . 3 . Full Trace Events . | . . . . . Feedback Events . | . . . . . Feedback Blocked . | . . . . . Robot Schematics Acquired . | . . . . . Robots Built . | . . . . . Authchips . | . . . . . Time . | . . . . . Total Robot Build Rating . | . . . . . Part Schematics Acquired 2 | . 2 . . . Parts Built . | . . . . . Authchips . | . . . . . Time . | . . . . . Total Part Build Rating . | . . . . . Parts Repaired . | . . . . . Time . | . . . . . Parts Recycled . | . . . . . Recycled Matter . | . . . . . Retrieved Matter . | . . . . . Retrieved Components . | . . . . . Parts Scanalyzed . | . . . . . Part Schematics Acquired . | . . . . . Parts Damaged . | . . . . . Bothacking | -11 -10 -10 -9 -9 ------------ Run | Jun Mat Min Mat Min Used RIF Installer . | . . . . . Robots Hacked . | . . . . . Non-combat . | . . . . . Combat . | . . . . . Robot Hacks Applied . | . . . . . Relay Couplers Released . | . . . . . Fabnet Peak Effective % . | . . . . . Robots Rewired . | . . . . . Allies Hacked . | . . . . . Hacks Repelled . | . . . . . Allies | -11 -10 -10 -9 -9 -------- Run | Jun Mat Min Mat Min Total Allies . | . . . . . Largest Group . | . . . . . Highest-Rated Group . | . . . . . Highest-Rated Ally . | . . . . . Total Orders . | . . . . . Ally Attacks . | . . . . . Total Damage . | . . . . . Kills . | . . . . . Allies Corrupted . | . . . . . Allies Melted . | . . . . . Intel | -11 -10 -10 -9 -9 ------- Run | Jun Mat Min Mat Min Robot Analysis Total . | . . . . . Derelict Logs Recovered 1 | . . 1 . . Drone Launches . | . . . . . Drone Recoveries . | . . . . . Exploration | -11 -10 -10 -9 -9 ------------- Run | Jun Mat Min Mat Min Turns Passed 1948 | 84 591 591 538 144 Spaces Moved 1391 | 44 492 562 258 35 Core 45 | 7 . . 3 35 Treads . | . . . . . Legs . | . . . . . Wheels 1346 | 37 492 562 255 . Hover . | . . . . . Flight . | . . . . . Fastest Speed 50 | 50 80 95 95 50 Average Speed 98 | 81 80 95 103 381 Slowest Speed 450 | 95 95 95 450 450 Overloaded Moves . | . . . . . Propulsion Burnouts . | . . . . . Robots Hopped . | . . . . . Cave-ins Triggered 1 | . . . . 1 Exploration Rate (%) 41 | 3 71 95 33 7 Regions Visited 4 Branch Regions 2 Pre-discovered Areas . | . . . . . Known Exits Taken . | . . . . . Unknown Exits Taken 4 | 1 1 1 1 . Scrap Searched 1 | . . 1 . . Spaces Dug . | . . . . . Terrain Destroyed 6 | 6 . . . . Melee . | . . . . . Projectile . | . . . . . AOE 6 | 6 . . . . Terrain Rammed . | . . . . . Walls Destroyed . | . . . . . Machines Disabled . | . . . . . Actions | -11 -10 -10 -9 -9 --------- Run | Jun Mat Min Mat Min Total 1725 | 77 599 597 412 40 Wait 109 | . 33 18 58 . Move 1387 | 43 491 561 257 35 Hop . | . . . . . Pick Up 46 | 14 14 7 11 . Fast Attach . | . . . . . Attach 18 | 7 . . 10 1 Detach 1 | . . . 1 . Swap 12 | 1 6 . 5 . Drop 18 | 4 10 . 3 1 Fire 132 | 8 44 11 66 3 Melee . | . . . . . Ram 2 | . 1 . 1 . Kick . | . . . . . Crush . | . . . . . Escape Stasis . | . . . . . Rewire . | . . . . . Trap . | . . . . . Miscellaneous . | . . . . . Route ------- -11/Junkyard -10/Materials (discovered 3 exits: *Mat x2 / *Min) -10/Mines (discovered 2 exits: *Mat x2) -9/Materials -9/Mines History --------- Turn | Location | Event 27 | -11/Junkyard | Discovered new exit (range 15) 85 | -11/Junkyard | Entered Materials 290 | -10/Materials | Discovered new exit (range 13) 304 | -10/Materials | Build established: Mutant 379 | -10/Materials | Discovered new exit (range 13) 662 | -10/Materials | Discovered new exit (range 16) 676 | -10/Materials | Entered Mines 684 | -10/Mines | Met a Derelict bent on vengeance 781 | -10/Mines | Learned 4 Materials zone layouts 792 | -10/Mines | Discovered new exit (range 16) 977 | -10/Mines | Found the Drone Emporium 987 | -10/Mines | Found Prototype Device 994 | -10/Mines | Discovered new exit (range 14) 1223 | -10/Mines | Found a hidden stash of uninstalled traps 1267 | -10/Mines | Entered Materials 1267 | -9/Materials | Evolved 2 slots: Utility x2 1267 | -9/Materials | Identified Decoy Drone Bay 1536 | -9/Materials | Discovered new exit (range 16) 1600 | -9/Materials | Lost 4 parts (1p2n1u) 1805 | -9/Materials | Entered Mines 1827 | -9/Mines | Lost 3 parts (1p2n) 1902 | -9/Mines | Assembled infested the area 1943 | -9/Mines | Core integrity fell below 50% 1944 | -9/Mines | Crushed by falling debris 1948 | -9/Mines | Core integrity fell below 20% 1949 | -9/Mines | Destroyed by D-53 Grenadier with Mini Grenade Launcher Last Messages --------------- 01902_ ALERT: Infestation in the mines, dispatching Demolisher response squad. 01937_ C-30 ARC bursts open, deploying its payload. 01937_ D-53 Grenadier unfolds itself. 01939_ System corrupted: Energy discharge (-37). 01942_ System corrupted: Shotgun jammed. 01944_ The unstable cave ceiling collapses. 01944_ Crushed by falling debris. 01944_ Imp. Light Cannon destroyed. 01944_ System corrupted by crushing effect (+1). 01944_ Terrain Scan Processor destroyed. 01944_ System corrupted by crushing effect (+2). 01944_ U-05 Engineer lays Concrete. 01946_ Dropped Lrg. Storage Unit. 01947_ The unstable cave ceiling collapses. 01947_ U-05 Engineer lays Concrete. 01947_ Shotgun destroyed. 01948_ U-05 Engineer lays Concrete. 01948_ U-05 Engineer destroyed. 01948_ R-06 Scavenger destroyed. Map ----- +----------------------------------------------------+ | ?????????????????????????????????????????????????? | | ?????????????????????????????????????????????????? | | ?????????????????????????????????????????????????? | | ?????????????????????????????????????????????????? | | ?????????????????????????????????????????????????? | | ?????????????????????????????????????????????????? | | ?????????????????????????????????????????????????? | | ?????????????????????????????????????????????????? | | ?????????????????????????????????????????????????? | | ?????????????????????????????????????????????????? | | ?????????????????????????????????????????????????? | | ?????????????????????????????????????????????????? | | ?????????????????????????????????????????????????? | | ?????????????????????????????????????????????????? | | ?????????????????????????????????????????????????? | | ??????????????????????#??????????????????????????? | | ??????????????????????# ?????????????????????????? | | ??????????????????????# ?????###?????????????????? | | ??????????????????????# ????? #?????????????????? | | ???????????????????####%###??# #?????????????????? | | ??????????????????## d#### ########??????????? | | ?????????????????## = ##a# #??????????? | | ???????????????### % #??????????? | | ???????????????# = #??????????? | | ??????????????# #??????????? | | ?????????????# ### @= d / #??????????? | | ?????????????? ???????## ]! #??????????? | | ????????????????????????# !! ###??????????? | | ????????????????????????# ! * #????????????? | | ????????????????????????# # ##????????????? | | ????????????????????????#### #?????????????? | | ???????????????????????????## # ##?????????????? | | ????????????????????????????#######??????????????? | | ?????????????????????????????????????????????????? | | ?????????????????????????????????????????????????? | | ?????????????????????????????????????????????????? | | | | | | | | | | | | | | | | | | | | | | | | | | | | | +----------------------------------------------------+ Best States ------------- Heat Dissipation 28 Energy Generation 10 Energy Capacity 250 Matter Stores 300 Matter Capacity 300 Sight Range 16 Terrain Scan Range 16 Terrain Scan Density 85 Evasion (%) 44 Salvage Targeting 1 Item Schematics ----------------- Lrg. Storage Unit | -10/Materials | Hacked Wheel | -10/Materials | Hacked Robot Schematics ------------------ None Fabricated ------------ Nothing Alien Tech Used ----------------- None Achievements -------------- None Challenges ------------ None Game ------ Seed XenonTransmissionNullifier Manual? 0 Play Time 00:16:05 Cumulative 318.6 hours Start 2023.10.19 @ 10:01:33 End 2023.10.19 @ 10:16:56 Sessions 1 Manual Loads 0 Difficulty Rogue Special Mode None Game No. 358 Rogue 358 Adventurer 0 Explorer 0 Win Type - Total 6 Types 3/1/1/1/0/0/0/0/0 Lore% 65 Gallery% 78 Achievement% 67 Wizard Run 0 Options --------- ASCII 0 Keyboard 0 Movement Numpad Keybinds 0 Fullscreen 1 Font 24/Smallcaps Map View 76x50 Tactical HUD 1 Map Filters NONE Filters NONE Steam 1 RUN: 7b2c6064-28bc-4464-8256-0f527ebb9781